bitfinex-derivatives/quotes_BTCF0:USTF0_20240815
["timestamp","ask_amount","ask_price","bid_price","bid_amount"]
[1723687619897,0.3608,58269.0,58265.0,0.05120349]
[1723687620203,0.5108,58269.0,58265.0,0.05120349]
[1723687620900,0.5108,58269.0,58268.0,0.060052]
[1723687621102,0.570851,58269.0,58266.0,0.05146087]
[1723687621398,0.570851,58269.0,58266.0,0.00025738]
[1723687621703,0.4527,58268.0,58266.0,0.00025738]
[1723687622001,0.6227,58268.0,58266.0,0.17025738]
[1723687622302,0.6227,58268.0,58267.0,0.05120349]
[1723687622603,0.17,58268.0,58267.0,0.230053]
[1723687622903,0.17,58268.0,58267.0,0.744933]
[1723687623105,0.37143281,58275.0,58267.0,1.30079809]
[1723687623312,0.51143281,58275.0,58274.0,0.060045]
[1723687623602,0.51143281,58275.0,58274.0,0.200045]
[1723687623800,3.8e-07,58277.0,58276.0,0.060043]
[1723687624002,0.3608,58310.0,58276.0,0.8717864]
[1723687624302,0.3608,58306.0,58304.0,0.05116374]
[1723687624606,0.3608,58306.0,58304.0,0.15]
[1723687624607,0.5308,58306.0,58304.0,0.15]
[1723687624998,0.5308,58306.0,58297.0,0.05116374]
[1723687624999,0.51452,58305.0,58297.0,0.05116374]
[1723687625202,0.51452,58305.0,58297.0,0.16]
[1723687625203,0.3608,58300.0,58297.0,0.16]
[1723687625501,0.5308,58300.0,58299.0,0.00025738]
[1723687626895,1.4454,58300.0,58285.0,0.05116374]
[1723687627119,1.4454,58300.0,58278.0,0.13814283]
[1723687627120,0.3608,58286.0,58278.0,0.13814283]
[1723687627403,0.17,58286.0,58285.0,0.060034]
[1723687627598,0.3608,58292.0,58291.0,0.060028]
[1723687627794,0.5208,58292.0,58291.0,0.230028]
[1723687628205,0.16,58292.0,58291.0,0.230028]
[1723687628604,0.5208,58292.0,58291.0,0.17]
[1723687629195,0.5208,58292.0,58291.0,0.004]
[1723687629800,0.5208,58292.0,58291.0,0.174]
[1723687629801,0.53171118,58292.0,58291.0,0.174]
[1723687630201,0.59811734,58292.0,58291.0,0.174]
[1723687630506,0.53171118,58292.0,58291.0,0.239028]
[1723687630705,0.59811993,58292.0,58291.0,0.235028]
[1723687631008,0.53171118,58292.0,58291.0,0.238028]
[1723687631411,0.53171118,58292.0,58291.0,0.239028]
[1723687631704,0.53171118,58292.0,58291.0,0.179]
[1723687631903,0.53171118,58292.0,58291.0,0.16110001]
[1723687632703,0.59812503,58292.0,58291.0,0.22112801]
[1723687632904,0.53171118,58292.0,58291.0,0.16110001]
[1723687633909,0.61489078,58292.0,58291.0,0.16110001]
[1723687634213,0.55951074,58292.0,58291.0,0.16110001]
[1723687637209,1.53417774,58292.0,58291.0,0.009]
[1723687637410,0.060041,58278.0,58260.0,0.00843333]
[1723687637713,0.06654076,58271.0,58270.0,0.06005]
[1723687637909,0.06654076,58271.0,58270.0,0.22005]
[1723687637910,0.21654076,58271.0,58270.0,0.22005]
[1723687638106,0.15,58271.0,58270.0,0.73489]
[1723687638310,0.14974263,58271.0,58270.0,1.13489]
[1723687638902,0.00025738,58276.0,58275.0,0.060044]
[1723687639105,0.3608,58291.0,58277.0,0.060042]
[1723687639410,0.5308,58291.0,58290.0,0.060029]
[1723687639715,0.54168379,58291.0,58290.0,0.220029]
[1723687640512,0.54168379,58291.0,58290.0,0.21119612]
[1723687641013,0.54168379,58291.0,58290.0,0.21519612]
[1723687641206,0.54168379,58291.0,58290.0,0.224029]
[1723687641603,0.54268379,58291.0,58290.0,0.228029]
[1723687642013,0.54268379,58291.0,58290.0,0.27922839]
[1723687642313,0.54268379,58291.0,58290.0,0.21919939]
[1723687643411,0.54268379,58291.0,58290.0,0.168]
[1723687645019,0.01188379,58291.0,58290.0,1.142709]
[1723687645208,0.01188379,58291.0,58290.0,1.59799306]
[1723687645519,7.9e-07,58291.0,58290.0,1.59797612]
[1723687645707,7.9e-07,58291.0,58290.0,2.08967612]
[1723687645913,0.15000079,58291.0,58290.0,2.02964712]
[1723687646416,7.9e-07,58291.0,58290.0,1.80750024]
[1723687646819,7.9e-07,58291.0,58290.0,1.70725003]
[1723687647114,0.20002879,58291.0,58290.0,0.168]
[1723687648008,1.11470879,58291.0,58290.0,0.008]
[1723687648214,0.060033,58286.0,58285.0,0.00025738]
[1723687648407,0.5308,58286.0,58285.0,0.15025738]
[1723687648722,0.5308,58286.0,58285.0,0.21029138]
[1723687649021,0.5308,58286.0,58285.0,0.15025738]
[1723687649515,0.5308,58286.0,58285.0,0.16125738]
[1723687649516,0.5318,58286.0,58285.0,0.16125738]
[1723687650716,0.5328,58286.0,58285.0,0.16825738]
[1723687651018,0.5328,58286.0,58285.0,0.22829138]
[1723687651820,0.54354832,58286.0,58285.0,0.27948897]
[1723687652217,0.54354832,58286.0,58285.0,0.22829138]
[1723687652614,0.60358132,58286.0,58285.0,0.21955897]
[1723687652815,0.54354832,58286.0,58285.0,0.16825738]
[1723687653213,0.54354832,58286.0,58285.0,0.21955897]
[1723687653413,0.54354832,58286.0,58285.0,0.16825738]
[1723687655323,0.54354832,58286.0,58285.0,0.22829138]
[1723687656122,0.54354832,58286.0,58285.0,0.16825738]
[1723687656123,0.60358132,58286.0,58285.0,0.16825738]
[1723687656318,0.60358132,58286.0,58275.0,0.08531265]
[1723687656319,0.060038,58282.0,58275.0,0.08531265]
[1723687656527,0.210038,58282.0,58280.0,0.05133131]
[1723687656713,0.3608,58281.0,58280.0,0.21133131]
[1723687656915,0.5108,58281.0,58280.0,0.16]
[1723687657128,0.5108,58281.0,58280.0,0.220039]
[1723687657820,0.5108,58281.0,58280.0,0.227039]
[1723687658023,0.5118,58281.0,58280.0,0.227039]
[1723687659022,0.5128,58281.0,58280.0,0.233039]
[1723687659322,1.087598,58281.0,58280.0,0.013]
[1723687659910,0.5128,58281.0,58280.0,0.163]
[1723687660725,0.5128,58281.0,58280.0,0.223039]
[1723687661626,0.3608,58292.0,58291.0,0.060028]
[1723687661921,0.50929885,58292.0,58291.0,0.210028]
[1723687662724,0.51029885,58292.0,58291.0,0.15]
[1723687662926,0.57032585,58292.0,58291.0,0.15]
[1723687663222,0.060033,58286.0,58285.0,0.05131417]
[1723687663426,0.060035,58284.0,58282.0,0.46131417]
[1723687663619,0.3608,58283.0,58282.0,0.20131417]
[1723687663814,0.5108,58283.0,58282.0,0.20131417]
[1723687664020,0.5108,58283.0,58282.0,0.15]
[1723687664723,0.5108,58283.0,58282.0,0.152]
[1723687665129,0.5108,58283.0,58282.0,0.15]
[1723687665421,0.5128,58283.0,58282.0,0.153]
[1723687665619,0.5128,58283.0,58282.0,0.213037]
[1723687667721,0.5128,58283.0,58282.0,0.153]
[1723687669023,0.5128,58283.0,58282.0,0.20431039]
[1723687669224,0.5128,58283.0,58282.0,0.153]
[1723687669413,0.5128,58283.0,58282.0,0.213037]
[1723687672925,0.5128,58283.0,58282.0,0.33236605]
[1723687673122,0.5128,58283.0,58282.0,0.84708605]
[1723687673625,0.3608,58293.0,58290.0,0.060028]
[1723687673926,0.5108,58293.0,58291.0,0.060027]
[1723687674122,0.5108,58293.0,58291.0,0.220027]
[1723687674427,0.5108,58293.0,58292.0,0.060027]
[1723687674618,0.5108,58293.0,58292.0,0.16]
[1723687675120,0.570826,58293.0,58292.0,0.21131391]
[1723687675330,0.570826,58293.0,58292.0,0.16]
[1723687675516,0.571826,58293.0,58292.0,0.16]
[1723687676122,0.571826,58293.0,58292.0,0.21133536]
[1723687676324,1.086466,58293.0,58292.0,0.16]
[1723687676628,0.571826,58293.0,58291.0,0.003]
[1723687676826,0.060027,58292.0,58291.0,0.15]
[1723687677019,0.230027,58292.0,58291.0,0.15]
[1723687678135,0.17,58292.0,58291.0,0.15]
[1723687678633,0.171,58292.0,58291.0,0.15]
[1723687679024,0.171,58292.0,58291.0,0.32790388]
[1723687679224,0.171,58292.0,58291.0,0.33090283]
[1723687679721,0.171,58292.0,58291.0,0.39940925]
[1723687679922,0.171,58292.0,58291.0,0.33090283]
[1723687680431,0.171,58292.0,58291.0,0.213028]
[1723687681235,0.171,58292.0,58291.0,0.39091671]
[1723687681727,0.171,58292.0,58291.0,0.33088871]
[1723687681930,1.08564,58292.0,58291.0,0.001]
[1723687682320,1.145667,58292.0,58291.0,0.001]
[1723687682523,0.28984267,58292.0,58285.0,0.03973293]
[1723687682727,0.060037,58282.0,58280.0,0.06850087]
[1723687682925,0.3608,58281.0,58280.0,0.23850087]
[1723687683227,0.560838,58281.0,58280.0,0.17]
[1723687684334,0.14,58281.0,58280.0,1.144799]
[1723687684525,0.001,58282.0,58281.0,0.060038]
[1723687684730,0.131,58282.0,58281.0,0.34021986]
[1723687685027,0.131,58282.0,58281.0,0.44294277]
[1723687685231,0.131,58282.0,58281.0,0.28018186]
[1723687685933,0.131,58282.0,58281.0,0.85497986]
[1723687686133,0.3608,58286.0,58285.0,0.060034]
[1723687686337,0.5108,58286.0,58285.0,0.34021586]
[1723687686835,0.5108,58286.0,58285.0,0.42580736]
[1723687687038,0.5108,58286.0,58285.0,1.25493586]
[1723687687232,0.5108,58286.0,58285.0,1.35765162]
[1723687687532,0.5108,58286.0,58285.0,1.25493586]
[1723687687735,0.5118,58286.0,58285.0,1.25493586]
[1723687687934,0.5128,58286.0,58285.0,1.35765162]
[1723687688142,0.152,58286.0,58285.0,1.25493586]
[1723687688437,0.002,58286.0,58285.0,1.25493586]
[1723687688639,0.052,58286.0,58285.0,1.25493586]
[1723687688940,0.052,58286.0,58285.0,1.35760689]
[1723687689128,0.052,58286.0,58285.0,1.25493586]
[1723687689333,0.052,58286.0,58285.0,0.85493586]
[1723687689540,0.052,58286.0,58285.0,0.34021586]
[1723687691440,0.052,58286.0,58285.0,0.30559284]
[1723687691636,0.052,58286.0,58285.0,0.33890717]
[1723687693139,0.052,58286.0,58285.0,0.4567665]
[1723687693530,0.052,58286.0,58285.0,0.54232847]
[1723687693936,1.086786,58286.0,58285.0,0.15831638]
[1723687694250,1.026753,58286.0,58285.0,0.33123625]
[1723687694547,0.626753,58286.0,58285.0,0.33123625]
[1723687694747,1.026753,58286.0,58285.0,0.33123625]
[1723687694933,0.060039,58281.0,58277.0,0.06845705]
[1723687695137,0.3608,58279.0,58278.0,0.06845705]
[1723687695338,0.5108,58279.0,58278.0,0.17]
[1723687695732,0.57084,58279.0,58278.0,0.17]
[1723687696548,0.57184,58279.0,58278.0,0.171]
[1723687696850,0.57284,58279.0,58278.0,0.171]
[1723687698345,0.5128,58279.0,58278.0,0.171]
[1723687698949,0.57284,58279.0,58278.0,0.171]
[1723687699135,1.4876,58279.0,58278.0,0.001]
[1723687699340,0.57284,58279.0,58278.0,0.171]
[1723687700850,0.060051,58269.0,58267.0,0.06845705]
[1723687701035,0.060051,58269.0,58268.0,0.05018938]
[1723687701036,0.570851,58269.0,58268.0,0.05018938]
[1723687701240,1.485691,58269.0,58268.0,0.228167]
[1723687701741,1.085691,58269.0,58268.0,0.228167]
[1723687701945,1.485691,58269.0,58268.0,0.228167]
[1723687702153,0.5118,58269.0,58268.0,0.228167]
[1723687702337,0.5128,58269.0,58268.0,0.05018938]
[1723687702851,0.152,58269.0,58268.0,0.17859172]
[1723687703046,0.15074291,58269.0,58268.0,1.24940181]
[1723687703246,0.15174291,58269.0,58268.0,1.19092487]
[1723687703439,0.15074291,58269.0,58268.0,1.28345526]
[1723687703850,0.15074291,58269.0,58268.0,1.76888185]
[1723687704053,0.15074291,58269.0,58268.0,1.68345526]
[1723687704345,0.15074291,58269.0,58268.0,2.00095951]
[1723687704346,0.001,58269.0,58268.0,2.00095951]
[1723687704554,0.00025738,58284.0,58283.0,0.060037]
[1723687704752,0.14025738,58284.0,58283.0,0.40796861]
[1723687704939,0.14025738,58284.0,58283.0,0.34793161]
[1723687705141,0.20029238,58284.0,58283.0,0.17]
[1723687705751,0.20029238,58284.0,58283.0,0.34792014]
[1723687705940,0.14225738,58284.0,58283.0,0.34792014]
[1723687706141,0.14225738,58284.0,58283.0,0.17]
[1723687707353,0.50305738,58284.0,58283.0,0.17]
[1723687707746,0.56309238,58284.0,58283.0,0.17]
[1723687710149,0.56309238,58284.0,58273.0,0.08542382]
[1723687710150,1.41777738,58284.0,58275.0,0.06833906]
[1723687710352,0.060048,58273.0,58268.0,0.00018938]
[1723687710554,0.06005,58271.0,58268.0,0.17018938]
[1723687710749,0.20005,58271.0,58268.0,0.17018938]
[1723687711647,0.3608,58269.0,58268.0,0.17018938]
[1723687711847,0.5108,58269.0,58268.0,0.17018938]
[1723687712755,1.085691,58269.0,58268.0,0.17018938]
[1723687712952,1.485691,58269.0,58268.0,0.17799179]
[1723687713154,0.060066,58254.0,58253.0,0.06833906]
[1723687713356,0.590867,58254.0,58241.0,0.02031814]
[1723687713560,0.590867,58254.0,58241.0,0.230079]
[1723687713561,0.3608,58243.0,58241.0,0.230079]
[1723687713854,0.00014727,58242.0,58241.0,0.230079]
[1723687714053,0.17014727,58242.0,58241.0,0.230079]
[1723687714256,0.17014727,58242.0,58241.0,0.17]
[1723687715651,0.17114727,58242.0,58241.0,0.17]
[1723687715846,0.17114727,58242.0,58241.0,0.23008]
[1723687716359,0.17214727,58242.0,58241.0,0.23008]
[1723687718949,0.17214727,58242.0,58241.0,0.17]
[1723687720458,0.17214727,58242.0,58241.0,0.23008]
[1723687720659,0.17214727,58242.0,58241.0,0.17]
[1723687721964,0.23222627,58242.0,58241.0,0.14653564]
[1723687722154,0.060082,58239.0,58238.0,0.36168]
[1723687722354,0.220082,58239.0,58238.0,0.5208]
[1723687723151,0.16,58239.0,58238.0,0.5208]
[1723687723356,0.16,58239.0,58238.0,0.16]
[1723687724363,0.221082,58239.0,58238.0,0.16]
[1723687724555,0.222082,58239.0,58238.0,0.16]
[1723687724757,0.582882,58239.0,58238.0,0.16]
[1723687724959,0.060093,58229.0,58219.0,0.3608]
[1723687725158,0.3608,58227.0,58221.0,0.14013875]
[1723687725357,0.060099,58222.0,58221.0,0.14013875]
[1723687725559,0.21028838,58222.0,58221.0,0.12000546]
[1723687726070,0.060105,58217.0,58206.0,0.3608]
[1723687726367,0.060105,58217.0,58206.0,0.5008]
[1723687726368,0.060111,58211.0,58206.0,0.5008]
[1723687726566,0.16,58211.0,58206.0,0.5008]
[1723687727753,0.16,58211.0,58206.0,0.14]
[1723687727955,0.3608,58209.0,58206.0,0.14]
[1723687728153,0.5108,58209.0,58206.0,0.14]
[1723687729254,0.4674,58208.0,58194.0,0.3608]
[1723687729459,0.3608,58204.0,58194.0,0.5208]
[1723687729756,0.5208,58204.0,58202.0,0.06012]
[1723687729961,0.16,58204.0,58202.0,0.22012]
[1723687730263,0.3608,58221.0,58203.0,1.13557941]
[1723687730459,0.3608,58221.0,58220.0,0.060102]
[1723687730659,0.4708,58221.0,58220.0,0.200102]
[1723687730959,0.4708,58221.0,58220.0,0.14]
[1723687731266,1.38621539,58221.0,58204.0,0.00092]
[1723687731566,0.060114,58208.0,58204.0,0.16]
[1723687731760,0.17,58208.0,58207.0,0.00025762]
[1723687732762,0.17,58208.0,58207.0,0.14025762]
[1723687733071,0.171,58208.0,58207.0,0.14025762]
[1723687733770,0.171,58208.0,58207.0,0.00025762]
[1723687734080,0.112,58208.0,58207.0,0.00025762]
[1723687734459,0.002,58208.0,58207.0,0.15025762]
[1723687734672,0.002,58208.0,58207.0,0.15125762]
[1723687734967,0.002,58208.0,58207.0,1.06665762]
[1723687735270,0.3608,58210.0,58207.0,0.15125762]
[1723687735567,0.3608,58210.0,58208.0,0.060114]
[1723687735755,0.3608,58210.0,58208.0,0.210114]
[1723687736060,0.4841,58223.0,58208.0,0.210114]
[1723687736061,0.00013539,58221.0,58208.0,0.6654]
[1723687736267,0.060083,58239.0,58217.0,0.3608]
[1723687736568,0.3608,58231.0,58222.0,0.3608]
[1723687736771,0.5108,58231.0,58222.0,0.3608]
[1723687736971,0.3608,58231.0,58222.0,0.5208]
[1723687737171,0.060084,58237.0,58222.0,0.5208]
[1723687737373,0.3608,58227.0,58222.0,0.5208]
[1723687737671,0.4908,58227.0,58222.0,0.5208]
[1723687737869,0.3608,58227.0,58222.0,0.5208]
[1723687738169,0.00025762,58232.0,58231.0,0.06009]
[1723687738367,0.3608,58240.0,58231.0,0.5008]
[1723687738572,0.5108,58240.0,58231.0,0.5008]
[1723687739372,0.3608,58234.0,58219.0,0.3608]
[1723687739685,0.15,58234.0,58231.0,0.003]
[1723687740184,0.15,58234.0,58231.0,0.143]
[1723687740671,0.15,58234.0,58232.0,0.060088]
[1723687740879,0.15,58234.0,58232.0,0.200088]
[1723687741271,0.15,58234.0,58232.0,0.14]
[1723687741577,0.15,58234.0,58232.0,0.200089]
[1723687741767,0.15,58234.0,58233.0,0.51516]
[1723687741963,0.001,58234.0,58233.0,0.66516]
[1723687742167,0.001,58234.0,58233.0,1.06516]
[1723687742372,0.3608,58260.0,58234.0,0.575207]
[1723687742578,0.5108,58260.0,58248.0,0.060072]
[1723687742775,0.3608,58253.0,58248.0,0.200072]
[1723687742977,0.5208,58253.0,58248.0,0.200072]
[1723687743370,0.3608,58249.0,58248.0,0.14]
[1723687743570,0.001,58234.0,58233.0,0.3628]
[1723687743775,0.001,58234.0,58233.0,0.592888]
[1723687743965,0.001,58234.0,58233.0,0.5328]
[1723687744374,0.5108,58234.0,58233.0,0.002]
[1723687744766,0.5108,58234.0,58229.0,0.00016345]
[1723687745077,0.00025762,58239.0,58235.0,0.060086]
[1723687745279,0.14025762,58239.0,58235.0,0.15]
[1723687745469,0.3608,58237.0,58229.0,0.00016345]
[1723687745672,0.060091,58231.0,58229.0,0.00016345]
[1723687745879,0.060092,58229.0,58228.0,0.00025762]
[1723687746176,0.060104,58218.0,58206.0,0.3608]
[1723687746382,0.3608,58215.0,58206.0,0.5208]
[1723687746680,0.570907,58215.0,58206.0,0.5208]
[1723687746876,0.9308,58228.0,58213.0,0.060109]
[1723687746877,0.00017633,58214.0,58213.0,0.060109]
[1723687747194,0.3608,58223.0,58222.0,0.060099]
[1723687747484,0.3608,58223.0,58222.0,0.210099]
[1723687747679,0.3608,58223.0,58222.0,0.725379]
[1723687747980,0.4806,58238.0,58222.0,0.725379]
[1723687747981,0.00025762,58228.0,58225.0,0.060096]
[1723687748279,0.3608,58226.0,58225.0,0.15]
[1723687748473,0.3608,58226.0,58225.0,0.210096]
[1723687748680,0.3608,58226.0,58225.0,0.15]
[1723687748877,0.00025762,58228.0,58225.0,0.210096]
[1723687749174,0.14025762,58228.0,58225.0,0.210096]
[1723687749780,0.001,58226.0,58225.0,0.213096]
[1723687749978,0.4618,58226.0,58225.0,0.01]
[1723687750173,0.4608,58226.0,58225.0,0.01]
[1723687750377,1.37604,58226.0,58225.0,0.01089901]
[1723687750785,1.036136,58226.0,58225.0,0.00789901]
[1723687751077,1.438136,58226.0,58225.0,0.013]
[1723687752275,0.4628,58226.0,58225.0,0.013]
[1723687752672,0.4628,58226.0,58225.0,0.01]
[1723687753074,0.4618,58226.0,58225.0,0.01]
[1723687753473,0.3608,58226.0,58225.0,0.200096]
[1723687753672,0.3618,58226.0,58225.0,0.208096]
[1723687754282,0.3608,58226.0,58225.0,0.200096]
[1723687754470,0.5308,58226.0,58225.0,0.204096]
[1723687754882,0.5308,58226.0,58225.0,0.144]
[1723687755180,0.590895,58226.0,58225.0,0.004]
[1723687755684,0.590895,58226.0,58225.0,0.174]
[1723687755874,1.506135,58226.0,58225.0,0.004]
[1723687756071,0.17,58226.0,58225.0,0.174]
[1723687756270,0.00025762,58228.0,58225.0,0.174]
[1723687756271,0.00025762,58228.0,58226.0,0.060095]
[1723687756480,0.16025762,58228.0,58226.0,0.230095]
[1723687756875,0.00025762,58228.0,58226.0,0.230095]
[1723687757175,0.3608,58245.0,58227.0,0.3608]
[1723687757377,0.01116,58245.0,58243.0,0.060077]
[1723687757577,0.3608,58250.0,58244.0,0.060077]
[1723687757772,0.3608,58250.0,58245.0,0.060076]
[1723687757773,0.5108,58250.0,58245.0,0.060076]
[1723687757978,0.5108,58250.0,58245.0,0.220076]
[1723687758275,0.5108,58250.0,58248.0,0.420872]
[1723687758276,0.15,58250.0,58248.0,0.420872]
[1723687758475,0.634,58257.0,58255.0,0.060065]
[1723687758476,0.63532001,58257.0,58255.0,0.060065]
[1723687758684,0.3608,58266.0,58262.0,0.060058]
[1723687758878,0.3608,58266.0,58252.0,0.44]
[1723687758879,0.00025762,58253.0,58252.0,0.060069]
[1723687759185,0.00025762,58253.0,58252.0,0.230069]
[1723687759683,0.3608,58260.0,58252.0,0.230069]
[1723687759684,0.3608,58260.0,58257.0,0.060063]
[1723687759990,0.5208,58260.0,58257.0,0.16]
[1723687760187,0.3608,58260.0,58258.0,0.060062]
[1723687760376,0.36196,58266.0,58258.0,0.14]
[1723687760377,0.3608,58259.0,58258.0,0.14]
[1723687760689,0.00025762,58264.0,58263.0,0.060057]
[1723687760873,0.00025762,58264.0,58263.0,0.210057]
[1723687763078,0.00125762,58264.0,58263.0,0.218057]
[1723687763274,0.00225762,58264.0,58263.0,0.222057]
[1723687764387,0.03775762,58264.0,58263.0,0.222057]
[1723687765788,0.03775762,58264.0,58263.0,0.736977]
[1723687765976,0.03775762,58264.0,58263.0,1.197034]
[1723687766180,0.03775762,58264.0,58263.0,1.652834]
[1723687766376,6.2e-07,58264.0,58263.0,1.91070196]
[1723687766781,0.3608,58278.0,58277.0,0.060043]
[1723687766982,0.3608,58278.0,58277.0,0.210043]
[1723687767983,0.3788,58278.0,58277.0,0.211043]
[1723687768182,0.018,58278.0,58277.0,0.211043]
[1723687768379,0.168,58278.0,58277.0,0.211043]
[1723687768789,0.168,58278.0,58277.0,0.725803]
[1723687770489,0.168,58278.0,58277.0,0.211043]
[1723687771092,0.168,58278.0,58277.0,4.495803]
[1723687771293,0.00025738,58283.0,58282.0,0.060038]
[1723687771494,0.00025738,58283.0,58282.0,0.17]
[1723687771788,0.14025738,58283.0,58282.0,0.230038]
[1723687771989,0.14025738,58283.0,58282.0,0.17]
[1723687772591,0.20129438,58283.0,58282.0,0.179]
[1723687772792,0.20229438,58283.0,58282.0,0.184]
[1723687774698,0.14225738,58283.0,58282.0,0.184]
[1723687775195,0.14225738,58283.0,58282.0,1.09872]
[1723687775499,0.14225738,58283.0,58282.0,1.158758]
[1723687776296,0.00225738,58283.0,58282.0,1.158758]
[1723687776693,0.00225738,58283.0,58282.0,0.244038]
[1723687778786,0.57309438,58283.0,58282.0,0.184]
[1723687778991,0.57309438,58283.0,58282.0,0.16845234]
[1723687778992,0.63313138,58283.0,58282.0,0.16845234]
[1723687779191,0.57309438,58283.0,58282.0,0.16845234]
[1723687779997,1.54785138,58283.0,58280.0,0.24]
[1723687780195,0.060039,58281.0,58280.0,0.16]
[1723687780396,0.220039,58281.0,58280.0,0.16]
[1723687781392,0.221039,58281.0,58280.0,0.171]
[1723687782304,0.221039,58281.0,58280.0,0.182]
[1723687782601,0.161,58281.0,58280.0,0.182]
[1723687782987,0.161,58281.0,58280.0,0.15975619]
[1723687783190,0.221039,58281.0,58280.0,0.12910675]
[1723687783387,0.221039,58281.0,58280.0,0.11100366]
[1723687784090,0.221039,58281.0,58280.0,0.10500366]
[1723687784295,1.195838,58281.0,58280.0,0.016]
[1723687784599,0.060047,58273.0,58262.0,3.77]
[1723687784796,0.931647,58273.0,58272.0,0.15025738]
[1723687785194,1.91157418,58273.0,58272.0,0.15025738]
[1723687785499,0.060053,58267.0,58250.0,0.060071]
[1723687785691,0.3608,58257.0,58250.0,0.200071]
[1723687785894,0.5108,58257.0,58251.0,3.77]
[1723687786098,0.5108,58257.0,58251.0,3.91]
[1723687786289,0.570864,58257.0,58251.0,3.91]
[1723687787297,0.5108,58257.0,58251.0,3.91]
[1723687787907,0.5118,58257.0,58251.0,3.91]
[1723687788099,0.5118,58257.0,58251.0,3.970069]
[1723687788300,0.5118,58257.0,58252.0,0.06776972]
[1723687788498,0.5128,58257.0,58252.0,0.20776972]
[1723687789502,0.5108,58257.0,58252.0,0.14]
[1723687789699,0.5128,58257.0,58252.0,0.141]
[1723687789902,0.5128,58257.0,58252.0,0.26883772]
[1723687790206,0.5128,58257.0,58253.0,0.060067]
[1723687790406,0.5128,58257.0,58253.0,0.200067]
[1723687790795,0.5128,58257.0,58255.0,0.060065]
[1723687791106,0.5128,58257.0,58255.0,0.210065]
[1723687791402,0.5128,58257.0,58256.0,3.77]
[1723687791594,0.5118,58257.0,58256.0,3.91]
[1723687791902,0.5128,58257.0,58256.0,3.970064]
[1723687792599,0.5128,58257.0,58256.0,3.974064]
[1723687793007,0.151,58257.0,58256.0,4.489024]
[1723687793199,1e-08,58260.0,58259.0,0.060061]
[1723687793395,1e-08,58260.0,58259.0,0.230061]
[1723687794507,0.16000001,58260.0,58259.0,0.230061]
[1723687794711,1e-08,58260.0,58259.0,0.29783072]
[1723687795001,0.3608,58263.0,58262.0,0.060058]
[1723687795312,0.3608,58263.0,58262.0,0.230058]
[1723687795898,0.3608,58263.0,58262.0,1.144978]
[1723687796408,0.3628,58263.0,58262.0,1.154978]
[1723687798404,0.002,58263.0,58262.0,1.154978]
[1723687798908,0.36105738,58268.0,58267.0,0.060053]
[1723687799206,0.52105738,58268.0,58267.0,0.210053]
[1723687799724,0.52105738,58268.0,58267.0,1.1932039]
[1723687800003,0.422321,58279.0,58267.0,1.42568]
[1723687800208,0.422321,58279.0,58274.0,0.060046]
[1723687800209,0.060042,58278.0,58274.0,0.060046]
[1723687800408,0.210042,58278.0,58275.0,3.77]
[1723687800704,0.15,58278.0,58277.0,0.060043]
[1723687800911,0.15,58278.0,58277.0,0.220043]
[1723687801296,0.15,58278.0,58277.0,3.990043]
[1723687801694,0.157,58278.0,58277.0,3.990043]
[1723687802096,0.166,58278.0,58277.0,3.991043]
[1723687802405,0.16,58278.0,58277.0,3.991043]
[1723687802706,0.16,58278.0,58277.0,4.04225094]
[1723687802894,0.220042,58278.0,58277.0,0.161]
[1723687803894,0.211042,58278.0,58277.0,0.16]
[1723687804910,0.210042,58278.0,58277.0,0.16]
[1723687805510,0.15,58278.0,58277.0,0.16]
[1723687805699,0.00017046,58283.0,58282.0,0.060038]
[1723687805901,0.00017046,58283.0,58282.0,0.230038]
[1723687806101,0.00017046,58283.0,58282.0,4.875558]
[1723687806516,0.00017046,58283.0,58282.0,4.94384763]
[1723687806810,0.00017046,58283.0,58282.0,4.875558]
[1723687807406,0.00117046,58283.0,58282.0,4.882558]
[1723687807609,0.00117046,58283.0,58282.0,4.367838]
[1723687807814,0.00117046,58283.0,58282.0,4.43612763]
[1723687808004,0.00117046,58283.0,58282.0,4.367838]
[1723687808205,0.00217046,58283.0,58282.0,4.373838]
[1723687808609,0.58300746,58283.0,58282.0,0.183]
[1723687808910,0.64304446,58283.0,58282.0,0.183]
[1723687809108,0.58300746,58283.0,58282.0,0.183]
[1723687812016,0.52297046,58283.0,58282.0,0.183]
[1723687812315,0.58300746,58283.0,58282.0,0.183]
[1723687820615,0.52297046,58283.0,58282.0,0.183]
[1723687822414,0.52297046,58283.0,58282.0,0.2342101]
[1723687823022,0.58300746,58283.0,58282.0,0.183]
[1723687825109,1.09772746,58283.0,58282.0,0.183]
[1723687825519,0.58300746,58283.0,58282.0,0.183]
[1723687825709,0.060039,58281.0,58280.0,0.24]
[1723687825915,0.060041,58279.0,58278.0,0.24]
[1723687826123,0.060041,58279.0,58277.0,0.00025738]
[1723687826124,0.060042,58278.0,58277.0,0.00025738]
[1723687826319,0.714802,58278.0,58277.0,0.16025738]
[1723687827825,0.715802,58278.0,58277.0,0.16625738]
[1723687828219,0.201042,58278.0,58277.0,0.16625738]
[1723687828423,0.200042,58278.0,58277.0,0.21646748]
[1723687828817,0.200042,58278.0,58277.0,0.16525738]
[1723687829027,0.201042,58278.0,58277.0,0.16525738]
[1723687829321,0.201042,58278.0,58277.0,0.21662843]
[1723687829514,0.201042,58278.0,58277.0,0.21662967]
[1723687829717,0.200042,58278.0,58277.0,0.16525738]
[1723687830522,0.200042,58278.0,58277.0,0.23354701]
[1723687831110,0.200042,58278.0,58277.0,4.00354701]
[1723687831620,0.200042,58278.0,58277.0,3.93525738]